fUSD/lending_fUSD_20250219
["ID","MTS","AMOUNT","RATE_DAILY","PERIOD"]
[353614576,1739958643184,-500.0,0.0001378,2]
[353614578,1739958643194,-500.0,0.0001378,2]
[353614580,1739958643203,-500.0,0.0001378,2]
[353614582,1739958643212,-500.0,0.0001378,2]
[353614584,1739958643222,-900.0,0.000138,5]
[353614586,1739958643231,-280.17388168,0.00013845,2]
[353614588,1739958643241,-500.0,0.0001386,2]
[353614590,1739958643250,-500.0,0.0001386,2]
[353614592,1739958643260,-500.0,0.0001386,2]
[353614594,1739958643270,-500.0,0.0001386,2]
[353614596,1739958643280,-500.0,0.0001386,2]
[353614598,1739958643289,-500.0,0.0001386,2]
[353614600,1739958643299,-500.0,0.0001386,2]
[353614602,1739958643308,-500.0,0.0001386,2]
[353614604,1739958643318,-500.0,0.0001386,2]
[353614606,1739958643327,-500.0,0.0001386,2]
[353614607,1739958643336,-500.0,0.0001386,2]
[353614610,1739958643346,-500.0,0.0001386,2]
[353614612,1739958643355,-500.0,0.0001386,2]
[353614613,1739958643365,-500.0,0.0001386,2]
[353614616,1739958643378,-500.0,0.0001386,2]
[353614618,1739958643387,-500.0,0.0001386,2]
[353614620,1739958643397,-500.0,0.0001386,2]
[353614621,1739958643406,-500.0,0.0001386,2]
[353614624,1739958643415,-500.0,0.0001386,2]
[353614625,1739958643425,-500.0,0.0001386,2]
[353614627,1739958643434,-500.0,0.0001386,2]
[353614629,1739958643445,-500.0,0.0001386,2]
[353614631,1739958643455,-500.0,0.0001386,2]
[353614633,1739958643464,-500.0,0.0001386,2]
[353614635,1739958643473,-500.0,0.0001386,2]
[353614637,1739958643482,-500.0,0.0001386,2]
[353614639,1739958643491,-1149.71,0.0001386,2]
[353614641,1739958643501,-689.97,0.0001386,2]
[353614643,1739958643511,-500.0,0.0001386,2]
[353614645,1739958643520,-500.0,0.0001386,2]
[353614647,1739958643530,-500.0,0.0001386,2]
[353614650,1739958643541,-500.0,0.0001386,2]
[353614652,1739958643551,-500.0,0.0001386,2]
[353614654,1739958643560,-500.0,0.0001386,2]
[353614656,1739958643570,-500.0,0.0001386,2]
[353614657,1739958643579,-501.68,0.0001386,2]
[353614659,1739958643588,-500.0,0.0001386,2]
[353614661,1739958643596,-500.0,0.0001386,2]
[353614663,1739958643605,-500.0,0.0001386,2]
[353614665,1739958643615,-500.0,0.0001386,2]
[353614667,1739958643624,-500.0,0.0001386,2]
[353614669,1739958643633,-500.0,0.0001386,2]
[353614671,1739958643643,-1638.75,0.0001386,2]
[353614673,1739958643651,-286.10198875,0.0001386,2]
[353614675,1739958643660,-435.24173282,0.0001386,2]
[353614677,1739958643670,-500.0,0.0001386,2]
[353614679,1739958643679,-500.0,0.0001386,2]
[353614681,1739958643687,-764.118626,0.0001386,2]
[353614683,1739958643696,-500.0,0.0001386,2]
[353614685,1739958643705,-500.0,0.0001386,2]
[353614687,1739958643715,-500.0,0.0001386,2]
[353614689,1739958643723,-663.71,0.0001386,2]
[353614691,1739958643732,-500.0,0.0001386,2]
[353614693,1739958643742,-500.0,0.0001386,2]
[353614695,1739958643751,-500.0,0.0001386,2]
[353614697,1739958643760,-500.0,0.0001386,2]
[353614699,1739958643769,-500.0,0.0001386,2]
[353614701,1739958643779,-961.84,0.0001386,2]
[353614703,1739958643788,-1719.57,0.0001386,2]
[353614705,1739958643797,-500.0,0.0001386,2]
[353614707,1739958643806,-500.0,0.0001386,2]
[353614709,1739958643815,-598.117079,0.0001386,2]
[353614711,1739958643824,-500.0,0.0001386,2]
[353614713,1739958643834,-516.88508626,0.0001386,2]
[353614715,1739958643843,-500.0,0.0001386,2]
[353614717,1739958643852,-1122.32,0.0001386,2]
[353614719,1739958643861,-500.0,0.0001386,2]
[353614721,1739958643871,-1319.32,0.0001386,2]
[353614723,1739958643879,-500.0,0.0001386,2]
[353614725,1739958643889,-500.0,0.0001386,2]
[353614727,1739958643899,-1631.12,0.0001386,2]
[353614729,1739958643908,-500.0,0.0001386,2]
[353614731,1739958643917,-500.0,0.0001386,2]
[353614732,1739958643927,-500.0,0.0001386,2]
[353614733,1739958643936,-3224.55,0.0001386,2]
[353614734,1739958643945,-500.0,0.0001386,2]
[353614735,1739958643955,-500.0,0.0001386,2]
[353614736,1739958643964,-1046.1,0.0001386,2]
[353614737,1739958643975,-500.0,0.0001386,2]
[353614738,1739958643984,-500.0,0.0001386,2]
[353614739,1739958643994,-822.22,0.0001386,2]
[353614740,1739958644003,-500.0,0.0001386,2]
[353614741,1739958644013,-517.86,0.0001386,2]
[353614742,1739958644023,-500.0,0.0001386,2]
[353614744,1739958644033,-1897.39,0.0001386,2]
[353614745,1739958644042,-216.10414828,0.0001386,2]
[353614746,1739958644054,-500.0,0.0001386,2]
[353614747,1739958644064,-500.0,0.0001386,2]
[353614748,1739958644078,-509.67132753,0.0001386,2]
[353614749,1739958644088,-1595.95,0.0001386,2]
[353614750,1739958644098,-2360.69,0.0001386,2]
[353614751,1739958644107,-500.0,0.0001386,2]
[353614753,1739958644117,-500.0,0.0001386,2]
[353614755,1739958644126,-500.0,0.0001386,2]
[353614756,1739958644135,-500.0,0.0001386,2]
[353614757,1739958644145,-500.0,0.0001386,2]
[353614758,1739958644154,-930.8,0.0001386,2]
[353614759,1739958644163,-500.0,0.0001386,2]
[353614760,1739958644173,-500.0,0.0001386,2]
[353614761,1739958644182,-4058.1,0.0001386,2]
[353614762,1739958644191,-661.97,0.0001386,2]
[353614763,1739958644201,-500.0,0.0001386,2]
[353614764,1739958644210,-2252.01,0.0001386,2]
[353614765,1739958644218,-500.0,0.0001386,2]
[353614766,1739958644228,-500.0,0.0001386,2]
[353614767,1739958644236,-500.0,0.0001386,2]
[353614768,1739958644245,-490.13728517,0.0001386,2]
[353614769,1739958644255,-500.0,0.0001386,2]
[353614770,1739958644264,-1230.73,0.0001386,2]
[353614771,1739958644273,-500.0,0.0001386,2]
[353614772,1739958644283,-591.75,0.0001386,2]
[353614773,1739958644292,-500.0,0.0001386,2]
[353614774,1739958644303,-500.0,0.0001386,2]
[353614775,1739958644312,-500.0,0.0001386,2]
[353614776,1739958644321,-500.0,0.0001386,2]
[353614777,1739958644331,-500.0,0.0001386,2]
[353614778,1739958644340,-500.0,0.0001386,2]
[353614779,1739958644349,-500.0,0.0001386,2]
[353614780,1739958644359,-1971.74,0.0001386,2]
[353614781,1739958644372,-500.0,0.0001386,2]
[353614782,1739958644381,-500.0,0.0001386,2]
[353614783,1739958644391,-500.0,0.0001386,2]
[353614784,1739958644400,-1580.38,0.0001386,2]
[353614785,1739958644411,-500.0,0.0001386,2]
[353614786,1739958644420,-777.0,0.0001386,2]
[353614787,1739958644430,-500.0,0.0001386,2]
[353614788,1739958644440,-500.0,0.0001386,2]
[353614789,1739958644450,-500.0,0.0001386,2]
[353614790,1739958644461,-2647.7,0.0001386,2]
[353614791,1739958644470,-500.0,0.0001386,2]
[353614792,1739958644480,-500.0,0.0001386,2]
[353614793,1739958644489,-500.0,0.0001386,2]
[353614794,1739958644499,-1017.49,0.0001386,2]
[353614795,1739958644509,-500.0,0.0001386,2]
[353614796,1739958644519,-1298.81,0.0001386,2]
[353614797,1739958644529,-500.0,0.0001386,2]
[353614798,1739958644538,-500.0,0.0001386,2]
[353614799,1739958644547,-1429.82,0.0001386,2]
[353614800,1739958644557,-500.0,0.0001386,2]
[353614801,1739958644567,-500.0,0.0001386,2]
[353614802,1739958644576,-500.0,0.0001386,2]
[353614803,1739958644585,-500.0,0.0001386,2]
[353614804,1739958644595,-500.0,0.0001386,2]
[353614805,1739958644604,-1350.11,0.0001386,2]
[353614806,1739958644614,-500.0,0.0001386,2]
[353614807,1739958644623,-500.0,0.0001386,2]
[353614808,1739958644632,-500.0,0.0001386,2]
[353614809,1739958644642,-500.0,0.0001386,2]
[353614810,1739958644651,-1657.98,0.0001386,2]
[353614811,1739958644661,-500.0,0.0001386,2]
[353614812,1739958644671,-500.0,0.0001386,2]
[353614813,1739958644681,-324.80098701,0.0001386,2]
[353614814,1739958644690,-500.0,0.0001386,2]
[353614815,1739958644700,-2268.32,0.0001386,2]
[353614816,1739958644709,-500.0,0.0001386,2]
[353614817,1739958644719,-500.0,0.0001386,2]
[353614818,1739958644728,-500.0,0.0001386,2]
[353614819,1739958644737,-500.0,0.0001386,2]
[353614820,1739958644747,-500.0,0.0001386,2]
[353614821,1739958644756,-500.0,0.0001386,2]
[353614822,1739958644765,-500.0,0.0001386,2]
[353614823,1739958644775,-500.0,0.0001386,2]
[353614824,1739958644784,-500.0,0.0001386,2]
[353614825,1739958644794,-2631.41,0.0001386,2]
[353614826,1739958644804,-1668.81,0.0001386,2]
[353614827,1739958644814,-500.0,0.0001386,2]
[353614828,1739958645024,-500.0,0.0001386,2]
[353614829,1739958645034,-500.0,0.0001386,2]
[353614830,1739958645043,-1315.26,0.0001386,2]
[353614831,1739958645054,-500.0,0.0001386,2]
[353614832,1739958645063,-500.0,0.0001386,2]
[353614833,1739958645073,-1731.57,0.0001386,2]
[353614834,1739958645083,-605.41520154,0.0001386,2]
[353614835,1739958645092,-500.0,0.0001386,2]
[353614836,1739958645102,-714.44,0.0001386,2]
[353614837,1739958645111,-187.73773741,0.0001386,2]
[353614838,1739958645121,-500.0,0.0001386,2]
[353614839,1739958645131,-500.0,0.0001386,2]
[353614840,1739958645141,-500.0,0.0001386,2]
[353614841,1739958645150,-1643.03,0.0001386,2]
[353614842,1739958645160,-636.92047586,0.0001386,2]
[353614843,1739958645170,-500.0,0.0001386,2]
[353614844,1739958645180,-500.0,0.0001386,2]
[353614845,1739958645189,-1725.14,0.0001386,2]
[353614846,1739958645199,-500.0,0.0001386,2]
[353614847,1739958645208,-764.1,0.0001386,2]
[353614848,1739958645219,-1919.55,0.0001386,2]
[353614849,1739958645229,-512.32229331,0.0001386,2]
[353614850,1739958645238,-500.0,0.0001386,2]
[353614851,1739958645247,-627.8,0.0001386,2]
[353614852,1739958645256,-1254.03,0.0001386,2]
[353614853,1739958645266,-1433.78,0.0001386,2]
[353614854,1739958645275,-500.0,0.0001386,2]
[353614855,1739958645290,-654.61,0.0001386,2]
[353614856,1739958645304,-500.0,0.0001386,2]
[353614857,1739958645314,-500.0,0.0001386,2]
[353614858,1739958645324,-741.88,0.0001386,2]
[353614859,1739958645334,-1167.89,0.0001386,2]
[353614860,1739958645343,-500.0,0.0001386,2]
[353614861,1739958645352,-810.7,0.0001386,2]
[353614862,1739958645362,-2263.14,0.0001386,2]
[353614863,1739958645375,-500.0,0.0001386,2]
[353614864,1739958645385,-1747.62,0.0001386,2]
[353614865,1739958645395,-500.0,0.0001386,2]
[353614866,1739958645404,-500.0,0.0001386,2]
[353614867,1739958645415,-500.0,0.0001386,2]
[353614868,1739958645424,-500.0,0.0001386,2]
[353614869,1739958645434,-599.82,0.0001386,2]
[353614870,1739958645445,-562.97,0.0001386,2]
[353614871,1739958645455,-1126.39,0.0001386,2]
[353614872,1739958645465,-1051.71,0.0001386,2]
[353614873,1739958645474,-507.56,0.0001386,2]
[353614874,1739958645484,-194.16669285,0.0001386,2]
[353614875,1739958645494,-1415.79,0.0001386,2]
[353614876,1739958645503,-1904.34,0.0001386,2]
[353614877,1739958645513,-2445.12,0.0001386,2]
[353614878,1739958645522,-520.58,0.0001386,2]
[353614879,1739958645532,-500.0,0.0001386,2]
[353614880,1739958645542,-500.0,0.0001386,2]
[353614881,1739958645552,-500.0,0.0001386,2]
[353614882,1739958645562,-2013.34,0.0001386,2]
[353614883,1739958645572,-500.0,0.0001386,2]
[353614884,1739958645581,-500.0,0.0001386,2]
[353614885,1739958645591,-500.0,0.0001386,2]
[353614886,1739958645600,-500.0,0.0001386,2]
[353614887,1739958645610,-500.0,0.0001386,2]
[353614888,1739958645619,-1155.82,0.0001386,2]
[353614889,1739958645629,-500.0,0.0001386,2]
[353614890,1739958645639,-411.76254545,0.00013861,2]
[353614891,1739958645649,-591.76,0.00013861,2]
[353614892,1739958645659,-500.0,0.00013861,2]
[353614893,1739958645669,-500.0,0.00013861,2]
[353614894,1739958645679,-500.0,0.00013861,2]
[353614895,1739958645688,-500.0,0.00013861,2]
[353614896,1739958645698,-580.16919119,0.00013861,2]
[353614897,1739958645708,-500.0,0.00013861,2]
[353614898,1739958645717,-500.0,0.00013861,2]
[353614899,1739958645727,-500.0,0.00013861,2]
[353614900,1739958645736,-500.0,0.00013861,2]
[353614901,1739958645746,-500.0,0.00013861,2]
[353614902,1739958645756,-500.0,0.00013861,2]
[353614903,1739958645766,-500.0,0.00013861,2]
[353614904,1739958645776,-500.0,0.00013861,2]
[353614905,1739958645786,-500.0,0.00013861,2]
[353614906,1739958645796,-500.0,0.00013861,2]
[353614907,1739958645806,-555.74,0.00013861,2]
[353614908,1739958645816,-572.35,0.00013861,2]
[353614909,1739958645826,-500.0,0.00013861,2]
[353614910,1739958645836,-500.0,0.00013861,2]
[353614911,1739958645845,-371.11230995,0.00013861,2]
[353614912,1739958645855,-500.0,0.00013861,2]
[353614913,1739958645865,-500.0,0.00013861,2]
[353614914,1739958645874,-500.0,0.00013861,2]
[353614915,1739958645884,-500.0,0.00013861,2]
[353614916,1739958645894,-500.0,0.00013861,2]
[353614917,1739958645904,-500.0,0.00013861,2]
[353614918,1739958645915,-500.0,0.00013861,2]
[353614919,1739958645925,-500.0,0.00013861,2]
[353614920,1739958645934,-512.88,0.00013861,2]
[353614921,1739958645944,-500.0,0.00013861,2]
[353614922,1739958645953,-500.0,0.00013861,2]
[353614923,1739958645963,-500.0,0.00013861,2]
[353614924,1739958645972,-500.0,0.00013861,2]
[353614925,1739958645982,-501.74,0.00013861,2]
[353614926,1739958645992,-500.0,0.00013861,2]
[353614927,1739958646002,-500.0,0.00013861,2]
[353614928,1739958646011,-500.0,0.00013861,2]
[353614929,1739958646021,-500.0,0.00013861,2]
[353614930,1739958646031,-500.0,0.00013861,2]
[353614931,1739958646041,-500.0,0.00013861,2]
[353614932,1739958646052,-500.0,0.00013861,2]
[353614933,1739958646061,-259.34239868,0.00013861,2]
[353614934,1739958646071,-500.0,0.00013861,2]
[353614935,1739958646080,-500.0,0.00013861,2]
[353614936,1739958646090,-500.0,0.00013861,2]
[353614937,1739958646100,-500.0,0.00013861,2]
[353614938,1739958646109,-500.0,0.00013861,2]
[353614939,1739958646119,-500.0,0.00013861,2]
[353614940,1739958646129,-500.0,0.00013861,2]
[353614941,1739958646138,-500.0,0.00013861,2]
[353614942,1739958646148,-530.78750804,0.00013861,2]
[353614943,1739958646158,-500.0,0.00013861,2]
[353614944,1739958646168,-777.52,0.00013861,2]
[353614945,1739958646178,-500.0,0.00013861,2]
[353614946,1739958646190,-488.48310354,0.00013861,2]
[353614947,1739958646200,-500.0,0.00013861,2]
[353614948,1739958646210,-500.0,0.00013861,2]
[353614949,1739958646220,-500.0,0.00013861,2]
[353614950,1739958646230,-584.72,0.00013861,2]
[353614951,1739958646241,-500.0,0.00013861,2]
[353614953,1739958646250,-500.0,0.00013861,2]
[353614955,1739958646260,-500.0,0.00013861,2]
[353614956,1739958646271,-598.61,0.00013861,2]
[353614957,1739958646281,-500.0,0.00013861,2]
[353614958,1739958646291,-500.0,0.00013861,2]
[353614959,1739958646302,-819.81,0.00013861,2]
[353614960,1739958646312,-579.43,0.00013861,2]
[353614961,1739958646323,-500.0,0.00013861,2]
[353614962,1739958646333,-662.41,0.00013861,2]
[353614963,1739958646342,-500.0,0.00013861,2]
[353614964,1739958646352,-545.98,0.00013861,2]
[353614965,1739958646362,-500.0,0.00013861,2]
[353614966,1739958646376,-500.0,0.00013861,2]
[353614967,1739958646396,-500.0,0.00013861,2]
[353614968,1739958646408,-500.0,0.00013861,2]
[353614969,1739958646420,-500.0,0.00013861,2]
[353614970,1739958646430,-500.0,0.00013861,2]
[353614971,1739958646442,-650.6,0.00013861,2]
[353614972,1739958646456,-500.0,0.00013861,2]
[353614973,1739958646466,-500.0,0.00013861,2]
[353614974,1739958646476,-500.0,0.00013861,2]
[353614975,1739958646485,-500.0,0.00013861,2]
[353614976,1739958646495,-500.0,0.00013861,2]
[353614977,1739958646504,-2287.15,0.00013861,2]
[353614978,1739958646513,-500.0,0.00013861,2]
[353614979,1739958646523,-500.0,0.00013861,2]
[353614980,1739958646532,-3780.16,0.00013861,2]
[353614981,1739958646543,-500.0,0.00013861,2]
[353614982,1739958646554,-2689.59,0.00013861,2]
[353614983,1739958646565,-500.0,0.00013861,2]
[353614984,1739958646575,-675.26,0.00013861,2]
[353614985,1739958646586,-1054.3,0.00013861,2]
[353614986,1739958646595,-525.73,0.00013861,2]
[353614987,1739958646606,-1002.09,0.00013861,2]
[353614988,1739958646615,-1768.75,0.00013861,2]
[353614989,1739958646625,-500.0,0.00013861,2]
[353614990,1739958646635,-566.11,0.00013861,2]
[353614991,1739958646645,-500.0,0.00013861,2]
[353614992,1739958646655,-500.0,0.00013861,2]
[353614993,1739958646665,-1310.35,0.00013861,2]
[353614994,1739958646675,-500.0,0.00013861,2]
[353614995,1739958646685,-500.0,0.00013861,2]
[353614996,1739958646695,-500.0,0.00013861,2]
[353614997,1739958646707,-500.0,0.00013861,2]
[353614998,1739958646718,-802.0,0.00013861,2]
[353614999,1739958646729,-500.0,0.00013861,2]
[353615000,1739958646739,-1473.07,0.00013861,2]
[353615001,1739958646748,-500.0,0.00013861,2]
[353615002,1739958646759,-630.16,0.00013861,2]
[353615003,1739958646770,-1193.41,0.00013861,2]
[353615004,1739958646781,-500.0,0.00013861,2]
[353615005,1739958646793,-1595.03,0.00013861,2]
[353615006,1739958646803,-1362.68,0.00013861,2]
[353615007,1739958646813,-500.0,0.00013861,2]
[353615008,1739958646824,-500.0,0.00013861,2]
[353615009,1739958646834,-1140.33,0.00013861,2]
[353615010,1739958646843,-1145.3,0.00013861,2]
[353615011,1739958646854,-533.66,0.00013861,2]
[353615012,1739958646864,-1298.9,0.00013861,2]
[353615013,1739958646873,-190.92,0.00013861,2]
[353615014,1739958646883,-1690.53,0.00013861,2]
[353615015,1739958646893,-500.0,0.00013861,2]
[353615016,1739958646903,-500.0,0.00013861,2]
[353615017,1739958646913,-500.0,0.00013861,2]
[353615018,1739958646922,-500.0,0.00013861,2]
[353615019,1739958646932,-500.0,0.00013861,2]
[353615020,1739958646942,-692.97,0.00013861,2]
[353615021,1739958646952,-1648.75,0.00013861,2]
[353615022,1739958646962,-1384.35,0.00013861,2]
[353615023,1739958646973,-500.0,0.00013861,2]
[353615024,1739958646983,-500.0,0.00013861,2]
[353615025,1739958646993,-500.0,0.00013861,2]
[353615026,1739958647002,-500.0,0.00013861,2]
[353615027,1739958647011,-500.0,0.00013861,2]
[353615028,1739958647022,-1155.94,0.00013861,2]
[353615029,1739958647031,-1515.36,0.00013861,2]
[353615030,1739958647041,-667.96,0.00013861,2]
[353615031,1739958647050,-500.0,0.00013861,2]
[353615032,1739958647060,-500.0,0.00013861,2]
[353615033,1739958647070,-500.0,0.00013861,2]
[353615034,1739958647079,-500.0,0.00013861,2]
[353615035,1739958647089,-1520.24,0.00013861,2]
[353615036,1739958647099,-500.0,0.00013861,2]
[353615037,1739958647108,-1919.55,0.00013861,2]
[353615038,1739958647118,-806.85,0.00013861,2]
[353615039,1739958647127,-500.0,0.00013861,2]
[353615040,1739958647137,-1543.83,0.00013861,2]
[353615041,1739958647147,-500.0,0.00013861,2]
[353615042,1739958647157,-1384.11,0.00013861,2]
[353615043,1739958647167,-500.0,0.00013861,2]
[353615044,1739958647176,-786.83,0.00013861,2]
[353615045,1739958647186,-500.0,0.00013861,2]
[353615046,1739958647196,-1949.93,0.00013861,2]
[353615047,1739958647205,-997.23,0.00013861,2]
[353615048,1739958647215,-500.0,0.00013861,2]
[353615049,1739958647225,-500.0,0.00013861,2]
[353615050,1739958647234,-1755.95,0.00013861,2]
[353615051,1739958647244,-500.0,0.00013861,2]
[353615052,1739958647253,-500.0,0.00013862,2]
[353615053,1739958647263,-500.0,0.00013862,2]
[353615054,1739958647273,-500.0,0.00013862,2]
[353615055,1739958647283,-512.09175982,0.00013862,2]
[353615056,1739958647293,-500.0,0.00013862,2]
[353615057,1739958647304,-500.0,0.00013862,2]
[353615058,1739958647315,-500.0,0.00013862,2]
[353615059,1739958647324,-500.0,0.00013862,2]
[353615060,1739958647333,-500.0,0.00013862,2]
[353615061,1739958647343,-500.0,0.00013862,2]
[353615062,1739958647353,-500.0,0.00013862,2]
[353615063,1739958647362,-500.0,0.00013862,2]
[353615064,1739958647374,-500.0,0.00013862,2]
[353615065,1739958647384,-500.0,0.00013862,2]
[353615066,1739958647394,-500.0,0.00013862,2]
[353615067,1739958647403,-654.29,0.00013862,2]
[353615068,1739958647414,-500.0,0.00013862,2]
[353615069,1739958647424,-500.0,0.00013862,2]
[353615070,1739958647434,-500.0,0.00013862,2]
[353615071,1739958647446,-500.0,0.00013862,2]
[353615072,1739958647523,-500.0,0.00013862,2]
[353615073,1739958647532,-500.0,0.00013862,2]
[353615074,1739958647541,-1204.96,0.00013862,2]
[353615075,1739958647550,-709.03,0.00013862,2]
[353615076,1739958647560,-500.0,0.00013862,2]
[353615077,1739958647570,-500.0,0.00013862,2]
[353615078,1739958647579,-500.0,0.00013862,2]
[353615079,1739958647588,-531.9,0.00013862,2]
[353615080,1739958647597,-500.0,0.00013862,2]
[353615081,1739958647606,-500.0,0.00013862,2]
[353615082,1739958647615,-500.0,0.00013862,2]
[353615083,1739958647624,-500.0,0.00013862,2]
[353615084,1739958647633,-508.01,0.00013862,2]
[353615085,1739958647643,-500.0,0.00013862,2]
[353615086,1739958647652,-500.0,0.00013862,2]
[353615087,1739958647661,-1121.0,0.00013862,2]
[353615088,1739958647670,-500.0,0.00013862,2]
[353615089,1739958647679,-500.0,0.00013862,2]
[353615090,1739958647688,-500.0,0.00013862,2]
[353615091,1739958647697,-500.0,0.00013862,2]
[353615092,1739958647706,-500.0,0.00013862,2]
[353615093,1739958647716,-500.0,0.00013862,2]
[353615094,1739958647726,-544.84,0.00013862,2]
[353615095,1739958647735,-500.0,0.00013862,2]
[353615096,1739958647744,-500.0,0.00013862,2]
[353615097,1739958647753,-500.0,0.00013862,2]
[353615098,1739958647763,-500.0,0.00013862,2]
[353615099,1739958647773,-500.0,0.00013862,2]
[353615100,1739958647783,-500.0,0.00013862,2]
[353615101,1739958647794,-500.0,0.00013862,2]
[353615102,1739958647804,-500.0,0.00013862,2]
[353615103,1739958647814,-500.0,0.00013862,2]
[353615104,1739958647824,-500.0,0.00013862,2]
[353615105,1739958647833,-541.25,0.00013862,2]
[353615106,1739958647843,-500.0,0.00013862,2]
[353615107,1739958647852,-500.0,0.00013862,2]
[353615108,1739958647862,-500.0,0.00013862,2]
[353615109,1739958647872,-500.0,0.00013862,2]
[353615110,1739958647882,-500.0,0.00013862,2]
[353615111,1739958647892,-500.0,0.00013862,2]
[353615112,1739958647901,-500.0,0.00013862,2]
[353615113,1739958647911,-512.02256673,0.00013862,2]
[353615114,1739958647921,-500.0,0.00013862,2]
[353615115,1739958647931,-500.0,0.00013862,2]
[353615116,1739958647941,-500.0,0.00013862,2]
[353615117,1739958647951,-500.0,0.00013862,2]
[353615118,1739958647961,-500.0,0.00013862,2]
[353615119,1739958647971,-500.0,0.00013862,2]
[353615120,1739958647980,-500.0,0.00013862,2]
[353615121,1739958647990,-500.0,0.00013862,2]
[353615122,1739958648000,-500.0,0.00013862,2]
[353615123,1739958648009,-500.0,0.00013862,2]
[353615124,1739958648019,-500.0,0.00013862,2]
[353615125,1739958648027,-500.0,0.00013862,2]
[353615126,1739958648035,-500.0,0.00013862,2]
[353615127,1739958648043,-500.0,0.00013862,2]
[353615128,1739958648052,-500.0,0.00013862,2]
[353615129,1739958648060,-500.0,0.00013862,2]
[353615130,1739958648068,-500.0,0.00013862,2]
[353615131,1739958648077,-500.0,0.00013862,2]
[353615132,1739958648087,-523.7655168,0.00013862,2]
[353615133,1739958648096,-500.0,0.00013862,2]
[353615134,1739958648105,-500.0,0.00013862,2]
[353615135,1739958648115,-500.0,0.00013862,2]
[353615136,1739958648124,-604.95,0.00013862,2]
[353615137,1739958648134,-500.0,0.00013862,2]
[353615138,1739958648143,-500.0,0.00013862,2]
[353615139,1739958648154,-500.0,0.00013862,2]
[353615140,1739958648163,-500.0,0.00013862,2]
[353615141,1739958648173,-500.0,0.00013862,2]
[353615142,1739958648183,-500.0,0.00013862,2]
[353615143,1739958648192,-620.86,0.00013862,2]
[353615144,1739958648202,-500.0,0.00013862,2]
[353615145,1739958648211,-500.0,0.00013862,2]
[353615146,1739958648221,-500.0,0.00013862,2]
[353615147,1739958648231,-500.0,0.00013862,2]
[353615148,1739958648241,-497.71614204,0.00013862,2]
[353615149,1739958648251,-521.33,0.00013862,2]
[353615150,1739958648260,-500.0,0.00013862,2]
[353615151,1739958648270,-321.53822636,0.00013862,2]
[353615152,1739958648280,-500.0,0.00013862,2]
[353615153,1739958648291,-500.0,0.00013862,2]
[353615154,1739958648301,-542.44,0.00013862,2]
[353615155,1739958648311,-500.0,0.00013862,2]
[353615156,1739958648322,-500.0,0.00013862,2]
[353615157,1739958648332,-500.0,0.00013862,2]